{"text_format":"2","workbook":"xlsx","n_sheets":2,"sheets":["támogatás igénylés","nyilatkozat"],"not_rendered":{"charts":0,"images":0,"macros":0,"external_links":0,"defined_names":14,"comments":0,"pivot_tables":0},"unopened":[],"bounds":{"document_bytes":16777216,"sheet_cells":100000,"run_cost":"one","rows_first":2000,"rows_last":500,"rows_between":2000,"halvings":0,"cell_chars":16384,"cell_head_chars":4096},"cells_cut":0,"cells_raw":0,"read":"whole","date_system":"1900"}

{"sheet":"támogatás igénylés","index":0,"n_rows":45,"n_cols":5,"rows_kept":45,"cut":false,"hidden":false,"merged":[[1,0,1,4],[2,0,2,4],[4,0,4,4],[7,0,7,4],[6,2,6,4],[44,0,44,4],[14,3,14,4],[35,0,35,4],[19,3,20,4],[21,0,21,4],[14,0,14,2],[36,0,36,4],[16,3,16,4],[17,3,17,4],[43,0,43,4],[17,0,17,2],[16,0,16,2],[18,0,18,2],[18,3,18,4],[13,0,13,2],[15,3,15,4],[10,0,10,2],[9,3,9,4],[15,0,15,2],[10,3,10,4],[9,0,9,2],[11,3,11,4],[12,3,12,4],[11,0,11,2],[12,0,12,2]]}
[]
["Egy példányban kitöltve, eredeti aláírással és bélyegzéssel ellátva kell benyújtani."]
["Az űrlap másolható, alakját és tartalmát kérjük, ne változtassa meg!"]
[]
["TÁMOGATÁS IGÉNYLÉS "]
[]
["Számviteli bizonylat az ","szerződésszám","számú szerződésben foglalt források felhasználásának elszámolásához"]
["A bizonylat formájára és tartalmára a számvitelről szóló 2000. évi C. törvény előírásai az irányadók"]
[]
["Kedvezményezett:",null,null,"Támogatást nyújtó:"]
[{"$f":"#REF!","v":{"$error":"#REF!"}},null,null,"Nemzeti Fejlesztési Ügynökség"]
["címe: ………………………………………………….",null,null,"címe: 1077 Budapest, Wesselényi u. 20-22."]
[null,null,null,"Magyar Államkincstárnál vezetett  számla"]
["Adóazonosító száma: …………………………………",null,null,"Megnevezése: "]
[null,null,null," Kutatási és Technológiai Innovációs Alap"]
["Hitelintézet: …………………………………………..",null,null,"száma:"]
[null,null,null,"10032000-00287072-00000000  "]
["Pénzforgalmi jelzőszáma:",null,null,"AHT azonosító:  "]
["………………………………………………………..",null,null,252612]
["Teljesítés időpontja:",null,"Bizonylat kelte:","Támogatásigénylő bizonylat sorszáma:"]
["         év        hó       nap",null,"         év        hó       nap"]
["A  szerződés ….. sz. mellékletében rögzített ………számú részfeladat teljesítésének ráfordításai forrásonként és jogcímenként*"]
["Költségtípusok","Támogatás (Ft)","Saját forrás (Ft)","Egyéb forrás (Ft)","Összesen (Ft)"]
["Működési költségek (1+2+3+4)",{"$f":"B25+B26+B28+B29","v":0},{"$f":"C25+C26+C28+C29","v":0},{"$f":"D25+D26+D28+D29","v":0},{"$f":"SUM(B24:D24)","v":0}]
["Személyi juttatások (1)",null,null,null,0]
["Munkaadókat terhelő járulékok (2)",null,null,null,0]
["Dologi költségek (3+4)",null,null,null,0]
["Külső megbízás (3)",null,null,null,0]
["Egyéb dologi kiadás (4)",null,null,null,0]
["Felhalmozási költségek (5+6)",{"$f":"B310","v":0},{"$f":"C31+C32","v":0},{"$f":"D31+D32","v":0},{"$f":"SUM(B30:D30)","v":0}]
["Immateriális javak beszerzése (5):",null,null,null,{"$f":"SUM(B31:D31)","v":0}]
["Gépek, berendezések, felszerelések beszerzése (6)",null,null,null,{"$f":"SUM(B32:D32)","v":0}]
["Költségek összesen:(1+2+3+4+5+6)",{"$f":"B24+B30","v":0},{"$f":"C24+C30","v":0},{"$f":"D24+D30","v":0},{"$f":"SUM(B33:D33)","v":0}]
[]
[]
["Igényelt támogatás összesen: ………………………Ft, azaz ………………………………………………Ft"]
["A jelen munkaszakaszban felhasználásra nem került előleget a következő munkaszakasz megvalósításakor kívánjuk igénybe venni."]
[]
[]
[null,"…………………………",null," ……………………………………"]
[null,"cégszerű aláírás**","PH.","kapcsolattartó*"]
[]
[]
["* A kedvezményezett részéről a szerződés szerinti nyilatkozat egyidejű csatolása szükséges."]
["** Az aláírók nevét nyomtatott betűkkel is kérjük kitölteni."]

{"sheet":"nyilatkozat","index":1,"n_rows":39,"n_cols":5,"rows_kept":39,"cut":false,"hidden":false,"merged":[[8,0,8,4],[30,0,30,4],[37,0,37,4],[38,0,38,4],[27,0,27,4],[24,2,24,4]]}
["Egy példányban kitöltve, eredeti aláírással és bélyegzéssel ellátva kell benyújtani."]
[{"$nulls":4},"Formanyomtatvány pénzügyi elszámoláshoz"]
[]
[]
[null,null,"N Y I L A T K O Z A T"]
[null,null,"(a kedvezményezett tölti ki)"]
[]
[]
["Alulírott <név>, mint a <a társaság/szervezet megnevezése> társaság/szervezet cégjegyzésre jogosult vezetője teljes jogi felelősséggel nyilatkozom, hogy a <támogatási szerződés száma> számú támogatási szerződés 2. számú Szakmai és Pénzügyi mellékletében rögzített pénzügyi beszámolások során teljes körűen, a támogatás és a saját/egyéb forrás felhasználására, valamint a kamat tekintetében elkülönített nyilvántartást vezetek. A szerződés <részfeladat azonosító adata> részfeladatának teljesítése során keletkezett és a könyvelésileg elkülönített nyilvántartásunkban kimutatott ráfordítások összege < összeg számmal Ft-ban> Ft azaz <összeg betűvel Ft-ban>, az alábbi forrásonkénti és jogcímenkénti megoszlásban. A kimutatott ráfordítások a szerződésben vállalt célok megvalósítása érdekében merültek fel."]
[]
[]
["Költségtípusok","Támogatás (Ft)","Saját forrás (Ft)","Egyéb forrás (Ft)","Összesen (Ft)"]
["Személyi juttatások ",null,null,null,{"$f":"SUM(B13:D13)","v":0}]
["Munkaadókat terhelő járulékok ",null,null,null,0]
["Külső megbízás",null,null,null,0]
["Egyéb dologi kiadás ",null,null,null,0]
["Immateriális javak beszerzése",null,null,null,0]
["Gépek, berendezések, felszerelések beszerzése ",null,null,null,0]
["Összesen:",{"$f":"SUM(B13:B18)","v":0},{"$f":"SUM(C13:C18)","v":0},{"$f":"SUM(D13:D18)","v":0},{"$f":"SUM(E13:E18)","v":0}]
[]
["……………………….,  …………év …………….hó …….nap."]
[]
[]
[null,null,null,"…………………………"]
[null,null,"            Társaság/szervezet képviseletére jogosult vezető aláírása*"]
[null,null,null,"PH."]
[]
["Alulírott <név>, mint a <a társaság/szervezet megnevezése> társaság/szervezet könyvvizsgálója, és <név>, mint a <a társaság/szervezet megnevezése> társaság/szervezet gazdasági vezetője igazolom, hogy a fenti adatok a <a társaság/szervezet megnevezése> társaság/szervezet elkülönített számviteli nyilvántartásával megegyeznek."]
[]
["………………………., ……….év ………………hó ……nap."]
[]
[]
[null,"…………………………",null,null,"…………………………"]
[null,"gazdasági vezető aláírása*",null,null,"könyvvizsgáló aláírása*"]
[{"$nulls":4},"Könyvvizsgálói Kamaránál nyilvántartott bejegyzési szám: ……………………."]
[]
[]
["Melléklet: aláírt támogatásigénylő lap (melynek ráfordítási adatai jogcímenként és forrásonként megegyezik a nyilatkozatban foglalt adatokkal) "]
["* Az aláírók nevét nyomtatott betűkkel is kérjük kitölteni."]